Cogmind - Beta 16 @@@ ROGUE MODE // 2025.11.19 @ 14:54:44 Player: iromakkem Result: Destroyed by as-57085 with Assembled F-torch Performance ------------- Evolutions (0) 0 Regions Visited (2) 400 Robots Destroyed (16) 80 Value Destroyed (377) 377 Prototype IDs (2) 40 Alien Tech Used (0) 0 Bonus (0) 0 TOTAL SCORE: 897 Bonus ------- None Cogmind --------- Core Integrity 0/250 Matter 300/300 Energy 160/160 System Corruption 5% Temperature Cool (27) Movement Core (450) Ox8 Location -10/Mines Parts ------- > --- POWER (1) -------- Light Nuclear Core > --- PROPULSION (2) --- (None) > --- UTILITY (2) ------ Large Storage Unit Improved Terrain Scanner > --- WEAPON (2) ------- (None) > --- INVENTORY (15) --- Light Ion Engine Light Ion Engine Light Treads Light Treads Heat Sink Large Storage Unit Seismic Detector Beam Rifle Beam Rifle Beam Rifle Light Assault Rifle Light Assault Rifle Light Cannon Light Cannon Maul Peak State ------------ > --- POWER ------------ Light Nuclear Core > --- PROPULSION ------- Aluminum Leg Aluminum Leg > --- UTILITY ---------- Large Storage Unit Improved Terrain Scanner > --- WEAPON ----------- Beam Rifle Light Assault Rifle > --- INVENTORY -------- Light Ion Engine Light Ion Engine Light Treads Light Treads Heat Sink Large Storage Unit Seismic Detector Beam Rifle Beam Rifle Beam Rifle Light Assault Rifle Light Assault Rifle Light Cannon Light Cannon Maul [Rating: 13] Favorites ----------- Power Light Ion Engine Engine Light Ion Engine Power Core Light Nuclear Core Propulsion Aluminum Leg Leg Aluminum Leg Utility Improved Terrain Scanner Device Improved Terrain Scanner Storage Large Storage Unit Weapon Light Assault Rifle Energy Gun Beam Rifle Ballistic Gun Light Assault Rifle Ballistic Cannon Light Cannon Build | -11 -10 -10 ------- Run | Yrd Mat Min Slots Evolved . | . . . Power . | . . . Propulsion . | . . . Utility . | . . . Weapon . | . . . Parts Attached 21 | 7 8 6 Power 5 | 1 2 2 Engine 4 | 1 2 1 Core 1 | . . 1 Reactor . | . . . Propulsion 5 | 2 2 1 Treads . | . . . Leg 5 | 2 2 1 Wheel . | . . . Hover . | . . . Flight . | . . . Utility 3 | 2 1 . Device 1 | 1 . . Storage 2 | 1 1 . Processor . | . . . Hackware . | . . . Protection . | . . . Artifact . | . . . Weapon 8 | 2 3 3 Energy Gun 5 | 2 1 2 Energy Cannon . | . . . Ballistic Gun 2 | . 1 1 Ballistic Cannon 1 | . 1 . Launcher . | . . . Special Weapon . | . . . Impact Weapon . | . . . Slashing Weapon . | . . . Piercing Weapon . | . . . Special Melee Weapon . | . . . Unidentified Prototypes . | . . . Parts Lost 12 | . 4 8 Power 3 | . 1 2 Propulsion 5 | . 2 3 Utility . | . . . Weapon 4 | . 1 3 Highest Loss Streak 5 | . 2 5 To Critical Strikes 1 | . . 1 Average Backups 10 | 3 9 14 Power 1 | . 1 1 Propulsion 2 | 1 2 2 Utility 1 | . 1 3 Weapon 4 | . 4 7 Tool/Special . | . . . Unused Backups 13 | . . 13 Power 2 | . . 2 Propulsion 2 | . . 2 Utility 2 | . . 2 Weapon 7 | . . 7 Tool/Special . | . . . Average Slot Usage (%) 97 | . 98 94 Engine 13 | . 13 11 Leg 26 | . 27 25 Device 14 | . 14 14 Storage 14 | . 14 14 Energy Gun 5 | . 1 15 Ballistic Gun 13 | . 13 11 Ballistic Cannon 9 | . 12 . Peak Build Rating 13 | 9 11 13 Average Rating 9 | 5 9 10 On Entrance 6 | . 9 11 Avg Prop Armor Cover (%) . | . . . Naked Turns . | . . . Heaviest Build 30 | 11 28 30 Greatest Support 20 | 20 20 20 Greatest Overweight (x) 2 | 1 2 2 Average Overweight (x) . | . . 1 Largest Inventory Capacity 15 | 8 15 15 Average Capacity 11 | 7 10 15 Most Carried 15 | 6 15 15 Average Carried 10 | 3 9 14 Final Capacity 15 | 8 15 15 Final Carried 15 | 6 14 15 Class Distribution -------------------- 81% | Mutant 18% | Scavenger-Mutant Dominant Class ---------------- Mutant | -10/Materials Scavenger-Mutant | -10/Mines Resources | -11 -10 -10 ----------- Run | Yrd Mat Min Matter Collected 555 | 220 285 50 Remotely . | . . . Salvage Created 528 | 125 373 30 Parts 37 | 9 23 5 Haulers Intercepted . | . . . Recyclers Shooed 2 | 1 1 . Parts Field Recycled . | . . . Retrieved Matter . | . . . Parts Self-Destructed . | . . . Prevented . | . . . Parts Restored . | . . . Kills | -11 -10 -10 ------- Run | Yrd Mat Min Combat Hostiles Destroyed 10 | . 8 2 Guns 4 | . 2 2 Cannons 6 | . 6 . Classes Destroyed 7 | 2 4 1 Worker 1 | . 1 . Tunneler 2 | 2 . . Recycler 2 | 1 1 . Watcher 1 | . 1 . Swarmer 2 | . . 2 Grunt 7 | . 7 . Subdweller 1 | . 1 . Best Kill Streak 4 | 2 4 2 Combat Bots Only 3 | . 3 2 Max Kills in Single Turn 2 | 1 1 2 Gunslinging 1 | . . 1 Exploded . | . . . Melee . | . . . Uniques/NPCs Destroyed . | . . . Combat | -11 -10 -10 -------- Run | Yrd Mat Min Hostile Shots Fired 107 | . 46 61 Missed 25 | . 13 12 Hits 82 | . 33 49 Melee 10 | . . 10 Projectile 72 | . 33 39 AOE 1 | . 1 . Critical Strikes 2 | . 1 1 Damage Taken 1264 | . 609 655 Core 250 | . 69 181 Absorbed by Shields . | . . . Core Remaining (%) 100 | 100 . . Volleys Fired 58 | 7 38 13 Largest 2 | 2 2 2 Hottest 106 | 80 80 106 Shots Fired 111 | 14 76 21 Gun 77 | 14 42 21 Cannon 34 | . 34 . Launcher . | . . . Special . | . . . Kinetic 77 | . 71 6 Thermal 34 | 14 5 15 Explosive . | . . . Electromagnetic . | . . . Robot Hit Streak 9 | 9 9 2 Robot Miss Streak 6 | 1 4 6 Penetration Max . | . . . Secondary Targets 1 | . . 1 Max Gunslinging Chain 1 | . . 1 Shots Hit Robots 60 | 10 42 8 Core Hits 31 | 4 23 4 Critical Kills . | . . . Critical Parts Destroyed . | . . . Critical Strikes . | . . . Melee Attacks . | . . . Impact . | . . . Slashing . | . . . Piercing . | . . . Sneak Attacks . | . . . Combat Hostiles . | . . . Follow-up Attacks . | . . . Damage Inflicted 827 | 114 609 104 Guns 432 | 114 214 104 Cannons 367 | . 367 . Explosions . | . . . Melee . | . . . Ramming 28 | . 28 . Kinetic 561 | . 538 23 Thermal 238 | 114 43 81 Explosive . | . . . Electromagnetic . | . . . Impact . | . . . Slashing . | . . . Piercing . | . . . Highest Corruption 5 | . . 5 Average Corruption 5 | . . 5 Corruption Purged . | . . . Corruption Blocked . | . . . Overload Shots . | . . . Overflow Damage . | . . . Projectiles . | . . . Explosions . | . . . Melee . | . . . Knockbacks 1 | . 1 . Impact . | . . . Kinetic 1 | . 1 . Secondary . | . . . Self-Inflicted Damage . | . . . Shots . | . . . Rammed . | . . . Targets Rammed 9 | . 9 . Kicked 9 | . 9 . Crushed . | . . . Highest Temperature 108 | 108 86 68 Average Temperature 26 | 51 20 27 Received Heat Transfer 304 | . 204 100 Siege Activations . | . . . Martial Activations . | . . . Shielding Activations . | . . . Robots Disrupted . | . . . Combat Hostiles . | . . . Robots Corrupted . | . . . Combat Hostiles . | . . . Parts Fried . | . . . Impact Corruptions . | . . . Robots Melted . | . . . Combat Hostiles . | . . . Parts Melted 1 | . 1 . Heat Transferred 583 | 250 111 222 Parts Sabotaged . | . . . Parts Stolen . | . . . Parts Stripped . | . . . Power Chain Reactions . | . . . Alert | -11 -10 -10 ------- Run | Yrd Mat Min Maximum Alert Level . | . . . Low Security (%) 100 | 100 100 100 Level 1 . | . . . Level 2 . | . . . Level 3 . | . . . Level 4 . | . . . Level 5 . | . . . High Security . | . . . Max Security . | . . . Peak Influence 77 | 5 77 40 Initial 3 | . 3 . Average 12 | 1 16 5 Influence Increases 277 | 15 222 40 Destroy 0b10 Robot/C 180 | . 140 40 Destroy 0b10 Robot/NC 30 | 15 15 . Destroy Leader 32 | . 32 . Successful Hack 5 | . 5 . Disable Machine 15 | . 15 . Lose Combat Pursuer 15 | . 15 . Influence Decreases 277 | 10 227 40 Entered New Map 2 | . 2 . Time Decay 257 | 10 207 40 Lost Part 18 | . 18 . Squads Dispatched 2 | . 2 . Investigation 2 | . 2 . Extermination . | . . . Reinforcement . | . . . Assault . | . . . Garrison . | . . . Intercept . | . . . Searches Triggered . | . . . Construction Impeded . | . . . Haulers Reinforced . | . . . Active Scanning Responses . | . . . Cargo Convoy Interrupts . | . . . Stealth | -11 -10 -10 --------- Run | Yrd Mat Min Distress Signals 1 | . 1 . Communications Jammed . | . . . Distress Signals . | . . . Times Spotted 38 | . 19 19 Peak Tracking Total 14 | . 3 14 Tactical Retreats 1 | . 1 . Traps | -11 -10 -10 ------- Run | Yrd Mat Min Traps Triggered 2 | . 2 . Indirectly . | . . . Trap Hack Attempts . | . . . Triggered . | . . . Disarmed . | . . . Reprogrammed . | . . . Reused . | . . . Traps Extracted . | . . . Installed . | . . . Triggered . | . . . Machines | -11 -10 -10 ---------- Run | Yrd Mat Min Machines Disabled 1 | . 1 . Max in Single Turn 1 | . 1 . Machines Repaired . | . . . Machines Dismantled . | . . . Machines Sabotaged . | . . . Overloaded Fab Kills . | . . . Hacking | -11 -10 -10 --------- Run | Yrd Mat Min Machines Accessed 3 | . 3 . Terminals 3 | . 3 . Fabricators . | . . . Repair Stations . | . . . Recycling Units . | . . . Scanalyzers . | . . . Garrison Access . | . . . Total Hacks 9 | . 9 . Successful 5 | . 5 . Failed 4 | . 4 . Catastrophic 1 | . 1 . Database Lockouts . | . . . Manual . | . . . Terminals 9 | . 9 . Fabricators . | . . . Repair Stations . | . . . Recycling Units . | . . . Scanalyzers . | . . . Garrison Access . | . . . Terminal Hacks 5 | . 5 . Prototype ID Bank 1 | . 1 . Emergency Access Points 1 | . 1 . Locate Traps 1 | . 1 . Investigation Status 1 | . 1 . Zone Layout 1 | . 1 . Fabricator Hacks . | . . . Repair Station Hacks . | . . . Recycling Unit Hacks . | . . . Scanalyzer . | . . . Garrison Access Hacks . | . . . Unauthorized Hacks . | . . . Terminals . | . . . Fabricators . | . . . Repair Stations . | . . . Recycling Units . | . . . Scanalyzers . | . . . Garrison Access . | . . . Data Cores Recovered . | . . . Used . | . . . Hacking Detections 2 | . 2 . Full Trace Events . | . . . Feedback Events . | . . . Feedback Blocked . | . . . Robot Schematics Acquired . | . . . Robots Built . | . . . Authchips . | . . . Time . | . . . Total Robot Build Rating . | . . . Part Schematics Acquired . | . . . Parts Built . | . . . Authchips . | . . . Time . | . . . Total Part Build Rating . | . . . Part Studies Acquired . | . . . Parts Repaired . | . . . Time . | . . . Parts Recycled . | . . . Recycled Matter . | . . . Retrieved Matter . | . . . Retrieved Components . | . . . Parts Scanalyzed . | . . . Part Schematics Acquired . | . . . Parts Damaged . | . . . Bothacking | -11 -10 -10 ------------ Run | Yrd Mat Min Used RIF Installer . | . . . Robots Hacked . | . . . Non-combat . | . . . Combat . | . . . Robot Hacks Applied . | . . . Relay Couplers Released . | . . . Fabnet Peak Effective % . | . . . Robots Rewired . | . . . Allies Hacked . | . . . Hacks Repelled . | . . . Allies | -11 -10 -10 -------- Run | Yrd Mat Min Total Allies 3 | . . 3 Largest Group 3 | . . 3 Highest-Rated Group 40 | . . 40 Highest-Rated Ally 16 | . . 16 Total Orders . | . . . Ally Attacks 17 | . . 17 Total Damage 163 | . . 163 Kills 2 | . . 2 Allies Corrupted . | . . . Allies Melted . | . . . Intel | -11 -10 -10 ------- Run | Yrd Mat Min Active Infowar (turns) 1177 | 29 847 301 Terrain 1177 | 29 847 301 Robot Analysis Total . | . . . Derelict Logs Recovered . | . . . Drone Launches . | . . . Drone Recoveries . | . . . Exploration | -11 -10 -10 ------------- Run | Yrd Mat Min Turns Passed 1242 | 94 847 301 Spaces Moved 653 | 49 474 130 Core 5 | 5 . . Treads . | . . . Legs 648 | 44 474 130 Wheels . | . . . Hover . | . . . Flight . | . . . Fastest Speed 50 | 50 120 190 Average Speed 152 | 115 144 196 Slowest Speed 260 | 120 260 260 Overloaded Moves . | . . . Propulsion Burnouts . | . . . Robots Hopped . | . . . Potential Cave-ins . | . . . Cave-ins Triggered . | . . . Exploration Rate (%) 37 | 4 76 31 Regions Visited 2 Branch Regions 1 Pre-discovered Areas . | . . . Known Exits Taken . | . . . Unknown Exits Taken 2 | 1 1 . Scrap Searched . | . . . Spaces Dug . | . . . Terrain Destroyed . | . . . Melee . | . . . Projectile . | . . . AOE . | . . . Terrain Rammed . | . . . Walls Destroyed . | . . . Machines Disabled . | . . . Actions | -11 -10 -10 --------- Run | Yrd Mat Min Total 788 | 68 566 154 Wait 16 | . 16 . Move 651 | 48 473 130 Hop . | . . . Pick Up 25 | 6 15 4 Fast Attach 10 | 7 1 2 Attach 8 | . 5 3 Detach 1 | . 1 . Swap 3 | . 2 1 Drop 7 | . 6 1 Fire 58 | 7 38 13 Melee . | . . . Ram . | . . . Kick 9 | . 9 . Crush . | . . . Escape Stasis . | . . . Rewire . | . . . Trap . | . . . Miscellaneous . | . . . Route ------- -11/Scrapyard -10/Materials (discovered 3 exits: [*Mat x2] / [*Min]) -10/Mines History --------- Turn | Location | Event 22 | -11/Scrapyard | Discovered new exit (range 16) 95 | -11/Scrapyard | Entered Materials 313 | -10/Materials | Build established: Mutant 331 | -10/Materials | Discovered new exit (range 4) 556 | -10/Materials | Discovered new exit (range 7) 695 | -10/Materials | Derelicts attacked the area 744 | -10/Materials | Discovered new exit (range 13) 942 | -10/Materials | Entered Mines 969 | -10/Mines | Core integrity fell below 50% 981 | -10/Mines | Lost 3 parts (1p1n1w) 1112 | -10/Mines | Assisted by bots powering up and referring to "LRC-V3" 1197 | -10/Mines | Assembled infested the area 1242 | -10/Mines | Core integrity fell below 20% 1243 | -10/Mines | Destroyed by as-57085 with Assembled F-torch Last Messages --------------- command?" 01112_ Trooper 1b: "Hello LRC-V3. What is your command?" 01197_ ALERT: Infestation in the mines, dispatching Demolisher response squad. 01215_ as-12006 suffers critical hit (Burn). 01216_ as-45279 sneak attacks. 01216_ K-01 Serf destroyed. 01217_ as-12006 destroyed. 01219_ Mercenary 1a destroyed. 01221_ as-68047 destroyed. 01223_ Trooper 1b destroyed. 01226_ Lgt. Ion Engine destroyed. 01228_ Trooper 1a destroyed. 01231_ Acquired Lgt. Nuclear Core. 01232_ Acquired 10 matter. 01235_ Beam Rifle destroyed. 01239_ Aluminum Leg destroyed. 01241_ Lgt. Assault Rifle destroyed. 01241_ System corrupted by crushing effect (+5). Map ----- +----------------------------------------------------+ | ?????????????????????????????????????????????????? | | ?????????????????????????????????????????????????? | | ?????????????????????????????????????????????????? | | ?????????????????????????????????????????????????? | | ?????????????????????????????????????????????????? | | ?????????????????????????????????????????????????? | | ?????????????????????????????????????????????????? | | ?????????????????????????????????????????????????? | | ?????????????????????????????????????????????????? | | ?????????????????????????????????????????????????? | | ?????????????????????????????????????????????????? | | ?????????????????????????????????????????????????? | | ?????????????????????????????????????????????????? | | ?????????????????????????????????????????????????? | | ????????????????????????#######??????????????????? | | ???????????????????????? ##?????????????????? | | ???????????????????????? #???#?????????????? | | ????????????????#??????? ##????????????????? | | ???????????????????????? ##??? ???????????? | | ???????????????#??????#?# aa????????????????? | | ????????????????????????# ???? ????????????? | | ???????????????????????## aa a ? ????????????????? | | ??????????????????#???## aa ???????????????????? | | ???????????????????#??# a #?#?????????? ???????? | | ??????????????????????# a##??????#?#???????????? | | ??????????????????????# @ ###???????????????????? | | ??????????????????????# aaa #???????#????? ??????? | | ???????????????????#?###a a #?#?#????????????????? | | ???????????????????????# ##??????##???????????? | | ??????????????????#????# % #####??###??????????? | | ??????????? ???????????## ### ##?????????? | | ??????????????????#?????###[%%% #?????????? | | ???????????????????#?????###%** #?????????? | | ????????????????##?????????##= %! #?#???????? | | ????????????????#??#????????# = ##?????????? | | ??????????????????????????### ##??#???????? | | ?????????????????#????#????# ##?#?????#???? | | ???????????#????###??#?????# ##???????????? | | ????????????#??? #???????## ##??????????? | | ????????????????# #???#???## ##?????????? | | ????????????????# #??????## #?????????? | | ????????????????# #?????## #?????????? | | ????????????????# #????## #????#????? | | ?????? ?????????# ####### ### ??????? | | ???????????????## ##?## ?????? | | ??????? ????????# ######## ##???# ####? ???? | | ???? $ ######## ###########???### ##??#?????? | | ???# #???#??#?# ##?????????? | | ????# #???#?????###??????????? | | ????# ######## ##### ##???#?????????#??#????? | +----------------------------------------------------+ Best States ------------- Heat Dissipation 25 Energy Generation 14 Energy Capacity 160 Matter Stores 300 Matter Capacity 300 Sight Range 16 Terrain Scan Range 16 Terrain Scan Density 10 Evasion (%) 55 Item Schematics ----------------- None Robot Schematics ------------------ None Fabricated ------------ Nothing Repaired ---------- Nothing Studied --------- None Alien Tech Used ----------------- None Achievements -------------- DATA ERROR: Steam Global Achievement% For Emergencies Only Organ Harvest There's More Where That Came From Challenges ------------ None Game ------ Seed EncryptedShadeRouter Manual? 0 Play Time 00:13:59 Cumulative 52.5 hours Start 2025.11.19 @ 14:41:56 End 2025.11.19 @ 14:54:44 Sessions 1 Manual Loads 0 Difficulty Rogue Special Mode None Game No. 74 Rogue 74 Adventurer 0 Explorer 0 Win Type - Total 0 Types 0/0/0/0/0/0/0/0/0/0 Lore% 19 Gallery% 24 Achievement% 14 Wizard Run 0 Options --------- Layout 1 ASCII 0 Keyboard 0 Movement Numpad Keybinds 0 Fullscreen 1 Font 16/SmallcapsGlow Map View 50x40 Zoom Use 70% Tactical HUD 1 Map Filters NONE Filters NONE Steam SD RUN: 99bd2eac-49a8-4f86-bf40-5f7f38f3e510